[Event "Kvibergspelen 2018"]
[Site "Prioritet Serneke Arena, Krutvagen 2, Gothenburg, Sweden"]
[Date "2018.04.21"]
[Round "6.6"]
[White "Sorensen, Hampus"]
[Black "Seo, Jung Min"]
[Result "0-1"]
[TimeControl "15 minutes + 5 seconds per move from move one (Round 1 - 4) / 90 minutes + 30 seconds per move from move one (Round 5 - 8)"]
[BlackTitle "FM"]
[WhiteFideId "8703884"]
[BlackFideId "1734687"]
[WhiteElo "2243"]
[BlackElo "2349"]

1. d4 {[%clk 01:30:43]} {[%emt 00:00:17]} f5 {[%clk 01:30:59]} {[%emt
00:00:01]} 2. Nf3 {[%clk 01:30:31]} {[%emt 00:00:41]} Nf6 {[%clk 01:31:25]}
{[%emt 00:00:04]} 3. g3 {[%clk 01:26:48]} {[%emt 00:04:13]} g6 {[%clk
01:31:29]} {[%emt 00:00:27]} 4. Bg2 {[%clk 01:26:56]} {[%emt 00:00:21]} Bg7
{[%clk 01:31:55]} {[%emt 00:00:04]} 5. O-O {[%clk 01:26:39]} {[%emt 00:00:46]}
O-O {[%clk 01:32:21]} {[%emt 00:00:05]} 6. c4 {[%clk 01:25:02]} {[%emt
00:02:07]} d6 {[%clk 01:32:25]} {[%emt 00:00:27]} 7. b3 {[%clk 01:24:06]}
{[%emt 00:01:25]} Ne4 {[%clk 01:31:41]} {[%emt 00:01:14]} 8. Bb2 {[%clk
01:22:09]} {[%emt 00:02:27]} Nd7 {[%clk 01:26:19]} {[%emt 00:12:21]} 9. Nbd2
{[%clk 01:18:06]} Ndf6 {[%clk 01:26:18]} 10. Qc2 {[%clk 01:16:24]} {[%emt
00:00:48]} c6 {[%clk 01:25:07]} {[%emt 00:01:42]} 11. Ne1 {[%clk 01:11:21]}
{[%emt 00:05:31]} Nxd2 {[%clk 01:22:45]} {[%emt 00:02:53]} 12. Qxd2 {[%clk
01:11:18]} {[%emt 00:00:33]} Qc7 {[%clk 01:21:35]} {[%emt 00:01:41]} 13. Rd1
{[%clk 01:07:34]} {[%emt 00:04:14]} Be6 {[%clk 01:18:25]} {[%emt 00:03:40]} 14.
Nd3 {[%clk 01:04:08]} {[%emt 00:03:55]} Bf7 {[%clk 01:17:05]} {[%emt 00:01:50]}
15. Qc1 {[%clk 01:03:31]} {[%emt 00:01:07]} a5 {[%clk 01:15:08]} {[%emt
00:02:28]} 16. f3 {[%clk 00:58:54]} {[%emt 00:05:08]} Nd7 {[%clk 01:09:47]}
{[%emt 00:05:51]} 17. Kh1 {[%clk 00:56:56]} {[%emt 00:02:27]} e5 {[%clk
01:01:07]} {[%emt 00:09:10]} 18. dxe5 {[%clk 00:54:31]} {[%emt 00:02:55]} Nxe5
{[%clk 01:01:21]} {[%emt 00:00:16]} 19. Nxe5 {[%clk 00:53:14]} {[%emt
00:01:47]} Bxe5 {[%clk 00:57:07]} {[%emt 00:04:45]} 20. e4 {[%clk 00:51:59]}
{[%emt 00:01:45]} fxe4 {[%clk 00:52:09]} {[%emt 00:05:28]} 21. fxe4 {[%clk
00:51:48]} {[%emt 00:00:41]} Be6 {[%clk 00:50:37]} {[%emt 00:02:01]} 22. Bxe5
{[%clk 00:43:06]} {[%emt 00:09:12]} dxe5 {[%clk 00:51:01]} {[%emt 00:00:06]} 23.
c5 {[%clk 00:40:04]} {[%emt 00:03:32]} Rxf1 {[%clk 00:48:54]} {[%emt 00:02:37]}
24. Bxf1 {[%clk 00:38:48]} {[%emt 00:01:46]} Rd8 {[%clk 00:46:53]} {[%emt
00:02:31]} 25. Rxd8+ {[%clk 00:37:50]} {[%emt 00:01:28]} Qxd8 {[%clk 00:47:19]}
{[%emt 00:00:03]} 26. Bc4 {[%clk 00:38:08]} {[%emt 00:00:11]} Bxc4 {[%clk
00:46:53]} {[%emt 00:00:57]} 27. Qxc4+ {[%clk 00:38:11]} {[%emt 00:00:27]} Kg7
{[%clk 00:47:18]} {[%emt 00:00:05]} 28. a4 {[%clk 00:36:35]} {[%emt 00:02:06]}
Qd2 {[%clk 00:42:13]} {[%emt 00:05:34]} 29. Kg1 {[%clk 00:36:03]} {[%emt
00:01:02]} Kh6 {[%clk 00:36:51]} {[%emt 00:05:52]} 30. h3 {[%clk 00:33:40]}
{[%emt 00:02:54]} Kg7 {[%clk 00:34:47]} {[%emt 00:02:34]} 31. Kf1 {[%clk
00:24:13]} {[%emt 00:09:57]} Qh2 {[%clk 00:32:45]} {[%emt 00:02:32]} 32. Qc3
{[%clk 00:24:07]} {[%emt 00:00:36]} Qxh3+ {[%clk 00:23:51]} {[%emt 00:09:24]}
33. Kg1 {[%clk 00:24:33]} {[%emt 00:00:04]} Kf6 {[%clk 00:24:08]} {[%emt
00:00:14]} 34. Qf3+ {[%clk 00:24:40]} {[%emt 00:00:23]} Kg5 {[%clk 00:23:38]}
{[%emt 00:01:00]} 35. Qc3 {[%clk 00:23:18]} {[%emt 00:01:50]} Qe6 {[%clk
00:23:15]} {[%emt 00:00:54]} 36. Kg2 {[%clk 00:23:05]} {[%emt 00:00:43]} Kh5
{[%clk 00:17:16]} {[%emt 00:06:30]} 37. Qxa5 {[%clk 00:20:42]} {[%emt
00:02:53]} Qxb3 {[%clk 00:16:25]} {[%emt 00:01:21]} 38. Qc7 {[%clk 00:20:58]}
{[%emt 00:00:14]} Qa2+ {[%clk 00:11:13]} {[%emt 00:05:42]} 39. Kh3 {[%clk
00:20:40]} {[%emt 00:00:48]} Qe6 {[%clk 00:11:39]} {[%emt 00:00:03]} 40. Kg2
{[%clk 00:21:01]} {[%emt 00:00:08]} Kg4 {[%clk 00:10:04]} {[%emt 00:02:06]} 41.
Qxh7 {[%clk 00:17:28]} {[%emt 00:04:04]} Qa2+ {[%clk 00:10:29]} {[%emt
00:00:04]} 42. Kg1 {[%clk 00:17:43]} {[%emt 00:00:13]} Kf3 {[%clk 00:10:00]}
{[%emt 00:01:01]} 43. Qh3 {[%clk 00:16:53]} {[%emt 00:01:19]} Qf2+ {[%clk
00:10:03]} {[%emt 00:00:27]} 44. Kh1 {[%clk 00:17:22]} {[%emt 00:00:01]} Qxg3
{[%clk 00:08:47]} {[%emt 00:01:46]} 45. Qf1+ {[%clk 00:17:36]} {[%emt
00:00:14]} Kxe4 {[%clk 00:08:36]} {[%emt 00:00:42]} 46. Qb1+ {[%clk 00:16:10]}
{[%emt 00:01:56]} Qd3 {[%clk 00:05:38]} {[%emt 00:03:27]} 47. Qxb7 {[%clk
00:16:38]} {[%emt 00:00:04]} Qd1 {[%clk 00:06:02]} {[%emt 00:00:05]} 48. Kh2
{[%clk 00:16:51]} {[%emt 00:00:18]} Qxa4 {[%clk 00:06:01]} {[%emt 00:00:31]} 49.
Qb1+ {[%clk 00:16:59]} {[%emt 00:00:22]} Kd5 {[%clk 00:06:26]} {[%emt
00:00:05]} 50. Qxg6 {[%clk 00:17:02]} {[%emt 00:00:27]} Qh4 {[%clk 00:06:37]}
{[%emt 00:00:19]} 51. Kg1 {[%clk 00:17:24]} {[%emt 00:00:08]} Qe1+ {[%clk
00:06:06]} {[%emt 00:01:00]} 52. Kh2 {[%clk 00:17:48]} {[%emt 00:00:06]} Qd2
{[%clk 00:06:18]} {[%emt 00:00:17]} 53. Kg1 {[%clk 00:17:41]} {[%emt 00:00:38]}
Kxc5 {[%clk 00:06:16]} {[%emt 00:00:33]} 54. Qg7 {[%clk 00:17:40]} {[%emt
00:00:31]} Qd4+ {[%clk 00:06:28]} {[%emt 00:00:17]} 55. Kf1 {[%clk 00:17:47]}
{[%emt 00:00:24]} Kc4 {[%clk 00:06:16]} {[%emt 00:00:40]} 56. Qg8+ {[%clk
00:17:18]} {[%emt 00:01:01]} Kc3 {[%clk 00:06:24]} {[%emt 00:00:22]} 57. Qa8
{[%clk 00:17:37]} {[%emt 00:00:11]} Qc4+ {[%clk 00:06:26]} {[%emt 00:00:27]} 58.
Kf2 {[%clk 00:17:56]} {[%emt 00:00:11]} Kc2 {[%clk 00:05:26]} {[%emt 00:01:31]}
59. Qe8 {[%clk 00:16:40]} {[%emt 00:01:45]} e4 {[%clk 00:05:26]} {[%emt
00:00:30]} 60. Ke3 {[%clk 00:16:56]} {[%emt 00:00:14]} c5 {[%clk 00:04:45]}
{[%emt 00:01:10]} 61. Kf4 {[%clk 00:16:11]} {[%emt 00:01:15]} Kd2 {[%clk
00:02:45]} {[%emt 00:02:30]} 62. Qd7+ {[%clk 00:15:16]} {[%emt 00:01:26]} Qd4
{[%clk 00:02:58]} {[%emt 00:00:18]} 63. Qa7 {[%clk 00:15:17]} {[%emt 00:00:29]}
e3+ {[%clk 00:03:22]} {[%emt 00:00:05]} 64. Kf3 {[%clk 00:15:43]} {[%emt
00:00:05]} Qd5+ {[%clk 00:03:34]} {[%emt 00:00:17]} 65. Kf4 {[%clk 00:16:10]}
{[%emt 00:00:04]} Qc4+ {[%clk 00:03:32]} {[%emt 00:00:31]} 66. Kg3 {[%clk
00:16:31]} {[%emt 00:00:11]} e2 {[%clk 00:03:08]} {[%emt 00:00:54]} 67. Qa5+
{[%clk 00:16:59]} {[%emt 00:00:02]} Qc3+ {[%clk 00:03:29]} {[%emt 00:00:08]}
0-1

[Event "Kvibergspelen 2018"]
[Site "Prioritet Serneke Arena, Krutvagen 2, Gothenburg, Sweden"]
[Date "2018.04.21"]
[Round "6.7"]
[White "Nilsson, Anders"]
[Black "Bellon Lopez, Juan"]
[Result "1-0"]
[TimeControl "15 minutes + 5 seconds per move from move one (Round 1 - 4) / 90 minutes + 30 seconds per move from move one (Round 5 - 8)"]
[WhiteTitle "CM"]
[BlackTitle "GM"]
[WhiteFideId "1705423"]
[BlackFideId "2200031"]
[WhiteElo "2217"]
[BlackElo "2352"]

1. d4 {[%clk 01:30:56]} {[%emt 00:00:02]} d5 {[%clk 01:30:39]} {[%emt
00:00:23]} 2. Bf4 {[%clk 01:30:56]} {[%emt 00:00:30]} Nf6 {[%clk 01:30:18]}
{[%emt 00:00:51]} 3. e3 {[%clk 01:31:04]} {[%emt 00:00:22]} c6 {[%clk
01:29:40]} {[%emt 00:01:07]} 4. c4 {[%clk 01:30:13]} {[%emt 00:01:21]} e6
{[%clk 01:27:29]} {[%emt 00:02:41]} 5. Nc3 {[%clk 01:27:43]} {[%emt 00:03:01]}
Nbd7 {[%clk 01:27:44]} {[%emt 00:00:14]} 6. h3 {[%clk 01:14:15]} {[%emt
00:16:36]} Bb4 {[%clk 01:22:52]} {[%emt 00:02:45]} 7. a3 {[%clk 01:08:09]}
{[%emt 00:06:37]} Bxc3+ {[%clk 01:22:36]} {[%emt 00:00:46]} 8. bxc3 {[%clk
01:08:33]} {[%emt 00:00:06]} Qa5 {[%clk 01:22:01]} {[%emt 00:01:05]} 9. Qb3
{[%clk 00:59:03]} {[%emt 00:10:00]} c5 {[%clk 01:18:08]} {[%emt 00:04:23]} 10.
Bd3 {[%clk 00:56:37]} {[%emt 00:02:57]} b5 {[%clk 01:16:10]} {[%emt 00:02:27]}
11. Bc2 {[%clk 00:41:11]} {[%emt 00:15:55]} bxc4 {[%clk 01:12:59]} {[%emt
00:03:41]} 12. Qb2 {[%clk 00:41:27]} {[%emt 00:00:15]} O-O {[%clk 01:04:32]}
{[%emt 00:08:57]} 13. Nf3 {[%clk 00:39:35]} {[%emt 00:02:21]} Ne8 {[%clk
00:57:05]} {[%emt 00:07:57]} 14. O-O {[%clk 00:39:18]} {[%emt 00:00:47]} f5
{[%clk 00:56:22]} {[%emt 00:01:13]} 15. a4 {[%clk 00:38:32]} {[%emt 00:01:16]}
h6 {[%clk 00:54:47]} {[%emt 00:02:05]} 16. Qa3 {[%clk 00:38:30]} {[%emt
00:00:32]} g5 {[%clk 00:54:31]} {[%emt 00:00:46]} 17. Bh2 {[%clk 00:38:13]}
{[%emt 00:00:47]} f4 {[%clk 00:53:33]} {[%emt 00:01:28]} 18. exf4 {[%clk
00:37:32]} {[%emt 00:01:12]} gxf4 {[%clk 00:53:58]} {[%emt 00:00:05]} 19. Qc1
{[%clk 00:36:32]} {[%emt 00:01:29]} Qc7 {[%clk 00:53:27]} {[%emt 00:01:01]} 20.
Re1 {[%clk 00:35:51]} {[%emt 00:01:11]} cxd4 {[%clk 00:53:46]} {[%emt
00:00:10]} 21. cxd4 {[%clk 00:31:48]} {[%emt 00:04:33]} Ng7 {[%clk 00:54:12]}
{[%emt 00:00:05]} 22. Bb1 {[%clk 00:28:30]} {[%emt 00:03:48]} Rf6 {[%clk
00:48:38]} {[%emt 00:06:03]} 23. a5 {[%clk 00:24:29]} {[%emt 00:04:32]} Ba6
{[%clk 00:44:11]} {[%emt 00:04:57]} 24. Ne5 {[%clk 00:23:19]} {[%emt 00:01:39]}
Nxe5 {[%clk 00:43:21]} {[%emt 00:01:20]} 25. Rxe5 {[%clk 00:19:17]} {[%emt
00:04:33]} Raf8 {[%clk 00:41:56]} {[%emt 00:01:54]} 26. Ra3 {[%clk 00:19:08]}
{[%emt 00:00:39]} Ne8 {[%clk 00:38:51]} {[%emt 00:03:35]} 27. Rf3 {[%clk
00:16:23]} {[%emt 00:03:16]} Qxa5 {[%clk 00:29:26]} {[%emt 00:09:55]} 28. Bxf4
{[%clk 00:16:05]} {[%emt 00:00:48]} Ng7 {[%clk 00:24:44]} {[%emt 00:05:12]} 29.
Qc2 {[%clk 00:13:12]} {[%emt 00:03:22]} R8f7 {[%clk 00:20:27]} {[%emt
00:04:47]} 30. Qh7+ {[%clk 00:12:34]} {[%emt 00:01:07]} Kf8 {[%clk 00:20:52]}
{[%emt 00:00:05]} 31. Bxh6 {[%clk 00:11:23]} {[%emt 00:01:42]} Rxf3 {[%clk
00:18:16]} {[%emt 00:03:06]} 32. Rxe6 {[%clk 00:09:34]} {[%emt 00:02:19]} Rb7
{[%clk 00:15:36]} {[%emt 00:03:09]} 33. Bg6 {[%clk 00:08:48]} {[%emt 00:01:17]}
1-0

[Event "Kvibergspelen 2018"]
[Site "Prioritet Serneke Arena, Krutvagen 2, Gothenburg, Sweden"]
[Date "2018.04.21"]
[Round "6.8"]
[White "Arman, Deniz"]
[Black "Al Waeli, Laith"]
[Result "1-0"]
[TimeControl "15 minutes + 5 seconds per move from move one (Round 1 - 4) / 90 minutes + 30 seconds per move from move one (Round 5 - 8)"]
[WhiteTitle "FM"]
[BlackTitle "FM"]
[WhiteFideId "6302106"]
[BlackFideId "4801059"]
[WhiteElo "2359"]
[BlackElo "2109"]

1. e4 {[%clk 01:26:23]} {[%emt 00:04:30]} g6 {[%clk 01:25:51]} {[%emt
00:05:16]} 2. d4 {[%clk 01:25:34]} {[%emt 00:01:19]} Bg7 {[%clk 01:26:12]}
{[%emt 00:00:08]} 3. Nc3 {[%clk 01:24:36]} {[%emt 00:01:28]} d6 {[%clk
01:26:29]} {[%emt 00:00:12]} 4. f4 {[%clk 01:24:04]} {[%emt 00:01:03]} Nc6
{[%clk 01:21:29]} {[%emt 00:13:09]} 5. Be3 {[%clk 01:21:49]} e5 {[%clk
01:12:05]} {[%emt 00:05:00]} 6. dxe5 {[%clk 01:20:03]} {[%emt 00:02:16]} dxe5
{[%clk 01:11:25]} {[%emt 00:01:10]} 7. Qxd8+ {[%clk 01:19:51]} {[%emt
00:00:42]} Kxd8 {[%clk 01:09:30]} {[%emt 00:02:24]} 8. O-O-O+ {[%clk 01:13:07]}
{[%emt 00:07:14]} Bd7 {[%clk 01:07:08]} {[%emt 00:02:53]} 9. Bc4 {[%clk
00:57:38]} {[%emt 00:15:59]} Nh6 {[%clk 01:03:15]} {[%emt 00:04:21]} 10. h3
{[%clk 00:57:02]} {[%emt 00:01:07]} Kc8 {[%clk 01:00:06]} {[%emt 00:03:40]} 11.
Nf3 {[%clk 00:55:48]} {[%emt 00:01:44]} Re8 {[%clk 00:51:45]} {[%emt 00:08:50]}
12. fxe5 {[%clk 00:51:59]} {[%emt 00:04:20]} a6 {[%clk 00:47:36]} {[%emt
00:04:38]} 13. Rhf1 {[%clk 00:45:59]} {[%emt 00:06:29]} Nd8 {[%clk 00:32:08]}
{[%emt 00:15:59]} 14. Nd5 {[%clk 00:36:08]} {[%emt 00:10:22]} Be6 {[%clk
00:19:22]} {[%emt 00:13:16]} 15. Bb3 {[%clk 00:34:25]} {[%emt 00:02:14]} Ng8
{[%clk 00:18:14]} {[%emt 00:01:37]} 16. Ng5 {[%clk 00:21:47]} {[%emt 00:13:07]}
Bxd5 {[%clk 00:15:04]} {[%emt 00:03:40]} 17. Bxd5 {[%clk 00:21:08]} {[%emt
00:01:09]} Bh6 {[%clk 00:12:38]} {[%emt 00:02:57]} 18. Bxf7 {[%clk 00:20:50]}
{[%emt 00:00:47]} 1-0

[Event "Kvibergspelen 2018"]
[Site "Prioritet Serneke Arena, Krutvagen 2, Gothenburg, Sweden"]
[Date "2018.04.21"]
[Round "6.9"]
[White "Al Hadarani, Hatim"]
[Black "Gonzalez, Emilio"]
[Result "1-0"]
[TimeControl "15 minutes + 5 seconds per move from move one (Round 1 - 4) / 90 minutes + 30 seconds per move from move one (Round 5 - 8)"]
[WhiteTitle "FM"]
[WhiteFideId "9400273"]
[BlackFideId "1721062"]
[WhiteElo "2334"]
[BlackElo "1921"]

1. e4 {[%clk 01:29:22]} {[%emt 00:01:36]} c5 {[%clk 01:30:49]} {[%emt
00:00:11]} 2. a3 {[%clk 01:29:50]} {[%emt 00:00:02]} g6 {[%clk 01:30:21]}
{[%emt 00:00:58]} 3. b4 {[%clk 01:29:49]} {[%emt 00:00:32]} Bg7 {[%clk
01:30:15]} {[%emt 00:00:36]} 4. c3 {[%clk 01:30:13]} {[%emt 00:00:06]} b6
{[%clk 01:29:26]} {[%emt 00:01:19]} 5. d4 {[%clk 01:22:55]} {[%emt 00:07:47]}
Bb7 {[%clk 01:28:03]} {[%emt 00:01:53]} 6. f3 {[%clk 01:22:38]} {[%emt
00:00:46]} cxd4 {[%clk 01:22:08]} {[%emt 00:11:16]} 7. cxd4 {[%clk 01:22:55]}
Nc6 {[%clk 01:22:07]} 8. Be3 {[%clk 01:21:29]} Nf6 {[%clk 01:21:17]} 9. Bd3
{[%clk 01:17:17]} {[%emt 00:03:51]} O-O {[%clk 01:21:36]} {[%emt 00:00:11]} 10.
Ne2 {[%clk 01:17:37]} {[%emt 00:00:10]} d6 {[%clk 01:19:03]} {[%emt 00:03:04]}
11. O-O {[%clk 01:17:26]} {[%emt 00:00:41]} Ne8 {[%clk 01:17:04]} {[%emt
00:02:28]} 12. Nd2 {[%clk 01:08:24]} {[%emt 00:09:32]} Nc7 {[%clk 01:15:30]}
{[%emt 00:02:05]} 13. Nb3 {[%clk 01:05:15]} {[%emt 00:03:39]} Qd7 {[%clk
01:10:02]} {[%emt 00:05:57]} 14. Qd2 {[%clk 01:03:25]} {[%emt 00:02:20]} Rfc8
{[%clk 01:05:57]} {[%emt 00:04:34]} 15. Ra2 {[%clk 00:55:30]} {[%emt 00:08:26]}
d5 {[%clk 00:57:13]} {[%emt 00:09:15]} 16. e5 {[%clk 00:54:57]} {[%emt
00:01:03]} f6 {[%clk 00:53:55]} {[%emt 00:03:48]} 17. f4 {[%clk 00:54:17]}
{[%emt 00:01:09]} f5 {[%clk 00:53:50]} {[%emt 00:00:35]} 18. g4 {[%clk
00:49:46]} {[%emt 00:05:02]} e6 {[%clk 00:51:34]} {[%emt 00:02:46]} 19. Ng3
{[%clk 00:48:06]} {[%emt 00:02:10]} Ne7 {[%clk 00:49:40]} {[%emt 00:02:24]} 20.
gxf5 {[%clk 00:25:58]} {[%emt 00:22:38]} Nxf5 {[%clk 00:48:44]} {[%emt
00:01:26]} 21. Nxf5 {[%clk 00:23:41]} {[%emt 00:02:48]} gxf5 {[%clk 00:48:28]}
{[%emt 00:00:46]} 22. Kh1 {[%clk 00:16:49]} {[%emt 00:07:22]} Nb5 {[%clk
00:48:04]} {[%emt 00:00:54]} 23. Qe1 {[%clk 00:15:32]} {[%emt 00:01:47]} Rc3
{[%clk 00:47:11]} {[%emt 00:01:23]} 24. Nc1 {[%clk 00:11:30]} {[%emt 00:04:32]}
Rac8 {[%clk 00:47:00]} {[%emt 00:00:41]} 25. Rg1 {[%clk 00:11:02]} {[%emt
00:00:58]} Kh8 {[%clk 00:41:37]} {[%emt 00:05:53]} 26. Rag2 {[%clk 00:09:57]}
{[%emt 00:01:34]} Nxd4 {[%clk 00:35:17]} {[%emt 00:06:50]} 27. Bxd4 {[%clk
00:09:44]} {[%emt 00:00:43]} Rxc1 {[%clk 00:35:16]} {[%emt 00:00:31]} 28. Qxc1
{[%clk 00:10:10]} {[%emt 00:00:04]} Rxc1 {[%clk 00:35:06]} {[%emt 00:00:42]} 29.
Rxc1 {[%clk 00:10:37]} {[%emt 00:00:02]} Bh6 {[%clk 00:31:38]} {[%emt
00:03:58]} 30. Rcg1 {[%clk 00:08:28]} {[%emt 00:02:39]} Qf7 {[%clk 00:31:32]}
{[%emt 00:00:36]} 31. Bxf5 {[%clk 00:07:57]} {[%emt 00:01:01]} Bxf4 {[%clk
00:30:46]} {[%emt 00:01:16]} 32. Bxe6 {[%clk 00:07:13]} {[%emt 00:01:14]} Qxe6
{[%clk 00:29:02]} {[%emt 00:02:14]} 33. Rg8 {[%clk 00:07:24]} {[%emt 00:00:19]}
Qxg8 {[%clk 00:28:09]} {[%emt 00:01:23]} 34. e6 {[%clk 00:07:41]} {[%emt
00:00:12]} Qg7 {[%clk 00:26:41]} {[%emt 00:01:59]} 35. Rxg7 {[%clk 00:07:44]}
{[%emt 00:00:26]} Be3 {[%clk 00:26:35]} {[%emt 00:00:30]} 36. Rxb7 {[%clk
00:08:02]} {[%emt 00:00:18]} 1-0

[Event "Kvibergspelen 2018"]
[Site "Prioritet Serneke Arena, Krutvagen 2, Gothenburg, Sweden"]
[Date "2018.04.21"]
[Round "6.10"]
[White "Subramanian, Aditya"]
[Black "Kucuksari, Kaan"]
[Result "0-1"]
[TimeControl "15 minutes + 5 seconds per move from move one (Round 1 - 4) / 90 minutes + 30 seconds per move from move one (Round 5 - 8)"]
[BlackTitle "FM"]
[WhiteFideId "1718924"]
[BlackFideId "6380166"]
[WhiteElo "2128"]
[BlackElo "2251"]

1. d4 {[%clk 01:30:22]} Nf6 {[%clk 01:30:49]} 2. Nf3 {[%clk 01:30:29]} e6
{[%clk 01:30:53]} 3. e3 {[%clk 01:30:29]} b6 {[%clk 01:30:53]} 4. Bd3 {[%clk
01:30:29]} Bb7 {[%clk 01:30:53]} 5. O-O {[%clk 01:30:29]} Be7 {[%clk 01:30:53]}
6. c4 {[%clk 01:30:29]} O-O {[%clk 01:30:53]} 7. Nc3 {[%clk 01:30:29]} d5
{[%clk 01:30:53]} 8. b3 {[%clk 01:30:29]} Nbd7 {[%clk 01:30:53]} 9. Bb2 {[%clk
01:30:29]} c5 {[%clk 01:30:53]} 10. cxd5 {[%clk 01:30:29]} exd5 {[%clk
01:30:53]} 11. Rc1 {[%clk 01:30:29]} Rc8 {[%clk 01:30:53]} 12. Qe2 {[%clk
01:30:29]} Re8 {[%clk 01:30:53]} 13. Ba6 {[%clk 01:30:29]} Qc7 {[%clk
01:30:53]} 14. dxc5 {[%clk 01:30:29]} bxc5 {[%clk 01:30:53]} 15. Bxb7 {[%clk
01:30:29]} Qxb7 {[%clk 01:30:53]} 16. Qb5 {[%clk 01:30:29]} Qxb5 {[%clk
01:30:53]} 17. Nxb5 {[%clk 01:30:29]} a6 {[%clk 01:30:53]} 18. Nc3 {[%clk
01:30:29]} Nb6 {[%clk 01:30:53]} 19. Rc2 {[%clk 01:30:29]} Red8 {[%clk
01:30:53]} 20. Ne2 {[%clk 01:30:29]} Ne4 {[%clk 01:30:53]} 21. Ba3 {[%clk
01:30:29]} f5 {[%clk 01:30:53]} 22. Rfc1 {[%clk 01:30:29]} Bf8 {[%clk
01:30:53]} 23. Nf4 {[%clk 01:30:29]} Re8 {[%clk 01:30:53]} 24. Nd3 {[%clk
01:30:29]} c4 {[%clk 01:30:53]} 25. Bxf8 {[%clk 01:30:29]} cxd3 {[%clk
01:30:53]} 26. Rxc8 {[%clk 01:30:29]} Rxc8 {[%clk 01:30:53]} 27. Rxc8 {[%clk
01:30:29]} Nxc8 {[%clk 01:30:53]} 28. Bb4 {[%clk 01:30:29]} Na7 {[%clk
01:30:53]} 29. Kf1 {[%clk 01:30:29]} Nc6 {[%clk 01:30:53]} 30. Bd2 {[%clk
01:30:29]} Kf7 {[%clk 01:30:53]} 31. Ke1 {[%clk 01:30:29]} Ke6 {[%clk
01:30:53]} 32. Nd4+ {[%clk 01:30:29]} Nxd4 {[%clk 01:30:53]} 33. exd4 {[%clk
01:30:29]} Nd6 {[%clk 01:30:53]} 34. Bc3 {[%clk 01:30:29]} f4 {[%clk 01:30:53]}
35. Bb4 {[%clk 01:30:29]} f3 {[%clk 01:30:53]} 36. gxf3 {[%clk 01:30:29]} Nf5
{[%clk 01:30:53]} 37. Bc5 {[%clk 01:30:29]} Nh4 {[%clk 01:30:53]} 38. Kd2
{[%clk 01:30:29]} Nxf3+ {[%clk 01:30:53]} 39. Kxd3 {[%clk 01:30:29]} Nxh2
{[%clk 01:30:53]} 40. b4 {[%clk 01:30:29]} Kd7 {[%clk 01:30:53]} 41. Bf8 {[%clk
01:30:29]} g5 {[%clk 01:30:53]} 42. Ke2 {[%clk 01:30:29]} g4 {[%clk 01:30:53]}
43. Ke3 {[%clk 01:30:29]} h5 {[%clk 01:30:53]} 44. Kf4 {[%clk 01:30:29]} h4
{[%clk 01:30:53]} 45. Bg7 {[%clk 01:30:29]} h3 {[%clk 01:30:53]} 46. f3 {[%clk
01:30:29]} Nf1 {[%clk 01:30:53]} 0-1